fUSD/lending_fUSD_20251213
["ID","MTS","AMOUNT","RATE_DAILY","PERIOD"]
[398436428,1765654329282,-151.0,0.00042404,31]
[398436429,1765654329319,-995.0,0.00042404,30]
[398436430,1765654329356,-151.0,0.00042404,30]
[398436431,1765654329394,-559.19188,0.00042404,30]
[398436432,1765654329433,-445.202766,0.00042404,30]
[398436433,1765654329472,-250.0,0.00042404,30]
[398436434,1765654329768,-162.380719,0.00042404,30]
[398436435,1765654329813,-151.0,0.00042404,30]
[398436436,1765654329855,-995.0,0.00042404,30]
[398436437,1765654329897,-151.0,0.00042404,30]
[398436438,1765654329935,-579.88197956,0.00042404,30]
[398436439,1765654329975,-250.0,0.00042404,30]
[398436440,1765654330014,-168.3888056,0.00042404,30]
[398436441,1765654330055,-461.67526834,0.00042404,30]
[398436442,1765654330093,-151.0,0.00042404,30]
[398436443,1765654330133,-995.0,0.00042404,30]
[398436444,1765654330171,-151.0,0.00042404,30]
[398436445,1765654330209,-601.3376128,0.00042404,30]
[398436446,1765654330249,-250.0,0.00042404,30]
[398436447,1765654330286,-478.75725327,0.00042404,30]
[398436448,1765654330322,-174.61919141,0.00042404,30]
[398436449,1765654330360,-995.0,0.00042404,30]
[398436450,1765654330398,-151.0,0.00042404,30]
[398436451,1765654330439,-151.0,0.00042404,30]
[398436452,1765654330479,-250.0,0.00042404,30]
[398436453,1765654330518,-496.47127164,0.00042404,30]
[398436454,1765654330558,-151.0,0.00042404,30]
[398436455,1765654330598,-995.0,0.00042404,30]
[398436456,1765654330636,-151.0,0.00042404,30]
[398436457,1765654330677,-181.08010149,0.00042404,30]
[398436458,1765654330713,-250.0,0.00042404,30]
[398436459,1765654330749,-514.84070869,0.00042404,30]
[398436460,1765654330787,-995.0,0.00042404,30]
[398436461,1765654330823,-1000.0,0.00042404,30]
[398436462,1765654330859,-151.0,0.00042404,30]
[398436463,1765654330897,-151.0,0.00042404,30]
[398436464,1765654330935,-250.0,0.00042404,30]
[398436465,1765654330972,-533.88981491,0.00042404,30]
[398436466,1765654331008,-187.78006525,0.00042404,30]
[398436467,1765654331044,-995.0,0.00042404,30]
[398436468,1765654331080,-1000.0,0.00042404,30]
[398436469,1765654331116,-151.0,0.00042404,30]
[398436470,1765654331153,-151.0,0.00042404,30]
[398436471,1765654331190,-252.64509501,0.00042404,30]
[398436472,1765654331227,-553.64373807,0.00042404,30]
[398436473,1765654331263,-194.72792766,0.00042404,30]
[398436474,1765654331301,-1000.0,0.00042404,30]
[398436475,1765654331339,-995.0,0.00042404,30]
[398436476,1765654331376,-151.0,0.00042404,30]
[398436477,1765654331415,-152.35430168,0.00042404,30]
[398436478,1765654331452,-1000.0,0.00042404,30]
[398436479,1765654331489,-995.0,0.00042404,30]
[398436480,1765654331527,-202.74398805,0.00042404,30]
[398436481,1765654331565,-151.0,0.00042404,30]
[398436482,1765654331602,-500.0,0.00042404,30]
[398436483,1765654331642,-1000.0,0.00042404,30]
[398436484,1765654331679,-151.0,0.00042404,30]
[398436485,1765654331715,-500.0,0.00042404,30]
[398436486,1765654331750,-623.58710448,0.00042404,30]
[398436487,1765654331783,-220.0,0.00042404,30]
[398436488,1765654331819,-1000.0,0.00042404,30]
[398436489,1765654331855,-151.0,0.00042404,30]
[398436490,1765654331895,-500.0,0.00042404,30]
[398436491,1765654331934,-646.65982734,0.00042404,30]
[398436492,1765654331981,-1000.0,0.00042404,30]
[398436493,1765654332016,-220.0,0.00042404,31]
[398436494,1765654332053,-500.0,0.00042404,30]
[398436495,1765654332109,-500.0,0.00042404,30]
[398436496,1765654332173,-670.58624095,0.00042404,30]
[398436497,1765654332237,-1000.0,0.00042404,30]
[398436498,1765654332298,-239.58622473,0.00042404,33]
[398436499,1765654332360,-500.0,0.00042404,30]
[398436500,1765654332415,-500.0,0.00042404,30]
[398436501,1765654332467,-500.0,0.00042404,30]
[398436502,1765654332532,-600.0,0.00042404,30]
[398436503,1765654332587,-707.71036019,0.00042404,30]
[398436504,1765654332663,-1000.0,0.00042404,30]
[398436505,1765654332720,-500.0,0.00042404,30]
[398436506,1765654332775,-500.0,0.00042404,30]
[398436507,1765654332832,-151.0,0.00042404,30]
[398436508,1765654332891,-1000.0,0.00042404,30]
[398436509,1765654332958,-600.0,0.00042404,30]
[398436510,1765654333010,-500.0,0.00042404,30]
[398436511,1765654333066,-500.0,0.00042404,30]
[398436512,1765654333122,-500.0,0.00042404,30]
[398436513,1765654333179,-151.0,0.00042404,31]
[398436514,1765654333233,-600.0,0.00042404,30]
[398436515,1765654333292,-1000.0,0.00042404,30]
[398436516,1765654333347,-500.0,0.00042404,30]
[398436517,1765654333401,-500.0,0.00042404,30]
[398436518,1765654333455,-500.0,0.00042404,30]
[398436519,1765654333510,-151.0,0.00042404,33]
[398436520,1765654333564,-500.0,0.00042404,30]
[398436521,1765654333621,-1000.0,0.00042404,30]
[398436522,1765654333678,-600.0,0.00042404,30]
[398436523,1765654333737,-500.0,0.00042404,30]
[398436524,1765654333791,-500.0,0.00042404,30]
[398436525,1765654333846,-151.0,0.00042404,35]
[398436526,1765654333898,-500.0,0.00042404,30]
[398436527,1765654333952,-600.0,0.00042404,30]
[398436528,1765654334007,-1000.0,0.00042404,30]
[398436529,1765654334059,-500.0,0.00042404,30]
[398436530,1765654334115,-500.0,0.00042404,30]
[398436531,1765654334176,-500.0,0.00042404,30]
[398436532,1765654334235,-151.0,0.00042404,52]
[398436533,1765654334291,-500.0,0.00042404,30]
[398436534,1765654334346,-1000.0,0.00042404,30]
[398436535,1765654334399,-600.0,0.00042404,30]
[398436536,1765654334452,-500.0,0.00042404,30]
[398436537,1765654334501,-1000.0,0.00042404,30]
[398436538,1765654334554,-500.0,0.00042404,30]
[398436539,1765654334605,-500.0,0.00042404,30]
[398436540,1765654334659,-1000.0,0.00042404,30]
[398436541,1765654334710,-600.0,0.00042404,30]
[398436542,1765654334764,-500.0,0.00042404,30]
[398436543,1765654334814,-1000.0,0.00042404,30]
[398436544,1765654334864,-500.0,0.00042404,30]
[398436545,1765654334915,-500.0,0.00042404,30]
[398436546,1765654334968,-1000.0,0.00042404,30]
[398436547,1765654335017,-600.0,0.00042404,30]
[398436548,1765654335067,-500.0,0.00042404,30]
[398436549,1765654335118,-500.0,0.00042404,30]
[398436550,1765654335171,-1000.0,0.00042404,30]
[398436551,1765654335223,-500.0,0.00042404,30]
[398436552,1765654335273,-160.0,0.00042404,30]
[398436553,1765654335323,-1000.0,0.00042404,30]
[398436554,1765654335377,-600.0,0.00042404,30]
[398436555,1765654335432,-500.0,0.00042404,30]
[398436556,1765654335886,-1000.0,0.00042404,30]
[398436557,1765654335925,-160.0,0.00042404,30]
[398436558,1765654335960,-1000.0,0.00042404,30]
[398436559,1765654335993,-600.0,0.00042404,30]
[398436560,1765654336026,-500.0,0.00042404,30]
[398436561,1765654336060,-1000.0,0.00042404,30]
[398436562,1765654336093,-160.0,0.00042404,30]
[398436563,1765654336127,-500.0,0.00042404,30]
[398436564,1765654336163,-1000.0,0.00042404,30]
[398436565,1765654336198,-600.0,0.00042404,30]
[398436566,1765654336232,-500.0,0.00042404,30]
[398436567,1765654336268,-1000.0,0.00042404,30]
[398436568,1765654336304,-161.77290993,0.00042404,30]
[398436569,1765654336340,-500.0,0.00042404,30]
[398436570,1765654336375,-600.0,0.00042404,30]
[398436571,1765654336412,-1000.0,0.00042404,30]
[398436572,1765654336447,-1000.0,0.00042404,30]
[398436573,1765654336482,-500.0,0.00042404,30]
[398436574,1765654336516,-600.0,0.00042404,30]
[398436575,1765654336553,-500.0,0.00042404,30]
[398436576,1765654336592,-1000.0,0.00042404,30]
[398436577,1765654336631,-1000.0,0.00042404,30]
[398436578,1765654336667,-500.0,0.00042404,30]
[398436579,1765654336705,-500.0,0.00042404,30]
[398436580,1765654336742,-600.0,0.00042404,30]
[398436581,1765654336778,-1000.0,0.00042404,30]
[398436582,1765654336816,-1000.0,0.00042404,30]
[398436583,1765654336850,-500.0,0.00042404,30]
[398436584,1765654336885,-500.0,0.00042404,30]
[398436585,1765654336919,-500.0,0.00042404,30]
[398436586,1765654336952,-615.53765437,0.00042404,30]
[398436587,1765654336986,-300.0,0.00042404,30]
[398436588,1765654337021,-1000.0,0.00042404,30]
[398436589,1765654337054,-518.5,0.00042404,31]
[398436590,1765654337089,-500.0,0.00042404,30]
[398436591,1765654337122,-500.0,0.00042404,30]
[398436592,1765654337157,-1000.0,0.00042404,30]
[398436593,1765654337191,-537.6845,0.00042404,33]
[398436594,1765654337224,-500.0,0.00042404,30]
[398436595,1765654337262,-500.0,0.00042404,30]
[398436596,1765654337297,-1000.0,0.00042404,30]
[398436597,1765654337331,-557.5788265,0.00042404,35]
[398436598,1765654337366,-500.0,0.00042404,30]
[398436599,1765654337401,-500.0,0.00042404,30]
[398436600,1765654337438,-1000.0,0.00042404,30]
[398436601,1765654337476,-500.0,0.00042404,30]
[398436602,1765654337511,-500.0,0.00042404,30]
[398436603,1765654337546,-500.0,0.00042404,30]
[398436604,1765654337586,-151.0,0.00042404,30]
[398436605,1765654337625,-10000.0,0.00042404,30]
[398436606,1765654337665,-500.0,0.00042404,30]
[398436607,1765654337703,-151.0,0.00042404,30]
[398436608,1765654337739,-10000.0,0.00042404,30]
[398436609,1765654337776,-151.0,0.00042404,30]
[398436610,1765654337812,-151.0,0.00042404,30]
[398436611,1765654337848,-151.0,0.00042404,30]
[398436612,1765654337882,-9000.0,0.00042404,30]
[398436613,1765654337916,-151.0,0.00042404,30]
[398436614,1765654337949,-151.0,0.00042404,30]
[398436615,1765654337981,-9000.0,0.00042404,30]
[398436616,1765654338015,-151.0,0.00042404,30]
[398436617,1765654338054,-151.0,0.00042404,30]
[398436618,1765654338095,-9000.0,0.00042404,30]
[398436619,1765654338131,-151.0,0.00042404,30]
[398436620,1765654338169,-151.0,0.00042404,30]
[398436621,1765654338209,-9000.0,0.00042404,30]
[398436622,1765654338247,-500.0,0.00042404,30]
[398436623,1765654338286,-151.0,0.00042404,30]
[398436624,1765654338321,-151.0,0.00042404,30]
[398436625,1765654338360,-9000.0,0.00042404,30]
[398436626,1765654338397,-518.5,0.00042404,30]
[398436627,1765654338435,-151.0,0.00042404,30]
[398436628,1765654338470,-151.0,0.00042404,30]
[398436629,1765654338505,-9000.0,0.00042404,30]
[398436630,1765654338543,-537.6845,0.00042404,30]
[398436631,1765654338588,-9000.0,0.00042404,30]
[398436632,1765654338631,-557.5788265,0.00042404,30]
[398436633,1765654338668,-151.0,0.00042404,30]
[398436634,1765654338701,-500.0,0.00042404,30]
[398436635,1765654338733,-9000.0,0.00042404,30]
[398436636,1765654338767,-578.20924308,0.00042404,30]
[398436637,1765654338801,-151.0,0.00042404,30]
[398436638,1765654338841,-500.0,0.00042404,30]
[398436639,1765654338875,-9118.40144269,0.00042404,30]
[398436640,1765654338910,-599.60298507,0.00042404,30]
[398436641,1765654338944,-500.0,0.00042404,30]
[398436642,1765654338976,-151.0,0.00042404,30]
[398436643,1765654339007,-621.78829552,0.00042404,30]
[398436644,1765654339039,-500.0,0.00042404,30]
[398436645,1765654339070,-644.79446246,0.00042404,30]
[398436646,1765654339101,-500.0,0.00042404,30]
[398436647,1765654339429,-668.65185757,0.00042404,30]
[398436648,1765654339469,-500.0,0.00042404,30]
[398436649,1765654339504,-500.0,0.00042404,30]
[398436650,1765654339540,-500.0,0.00042404,30]
[398436651,1765654339578,-500.0,0.00042404,30]
[398436652,1765654339615,-151.0,0.00042404,30]
[398436653,1765654339653,-1000.0,0.00042404,30]
[398436654,1765654339686,-151.0,0.00042404,30]
[398436655,1765654339718,-151.0,0.00042404,30]
[398436656,1765654339752,-151.0,0.00042404,30]
[398436657,1765654339791,-151.0,0.00042404,30]
[398436658,1765654339826,-151.0,0.00042404,30]
[398436659,1765654339860,-151.0,0.00042404,30]
[398436660,1765654339894,-151.0,0.00042404,30]
[398436661,1765654339932,-250.0,0.00042404,30]
[398436662,1765654339970,-151.0,0.00042404,30]
[398436663,1765654340009,-250.0,0.00042404,30]
[398436664,1765654340051,-250.0,0.00042404,30]
[398436665,1765654340089,-250.0,0.00042404,30]
[398436666,1765654340130,-250.0,0.00042404,30]
[398436667,1765654340170,-250.0,0.00042404,30]
[398436668,1765654340210,-250.0,0.00042404,30]
[398436669,1765654340248,-250.0,0.00042404,30]
[398436670,1765654340284,-250.0,0.00042404,30]
[398436671,1765654340320,-250.0,0.00042404,30]
[398436672,1765654340366,-250.0,0.00042404,30]
[398436673,1765654340409,-250.0,0.00042404,30]
[398436674,1765654340453,-250.0,0.00042404,30]
[398436675,1765654340490,-250.0,0.00042404,30]
[398436676,1765654340528,-250.0,0.00042404,30]
[398436677,1765654340564,-250.0,0.00042404,30]
[398436678,1765654340602,-250.0,0.00042404,30]
[398436679,1765654340642,-250.0,0.00042404,30]
[398436680,1765654340680,-227.7378727,0.00042405,120]
[398436681,1765654340717,-1098.0,0.00042405,30]
[398436682,1765654340752,-1098.0,0.00042405,30]
[398436683,1765654340790,-154.79,0.00042408,120]
[398436684,1765654340829,-50000.0,0.0004242,32]
[398436685,1765654340866,-50000.0,0.0004242,33]
[398436686,1765654340905,-200.0,0.0004242,120]
[398436687,1765654343679,-200.0,0.00042421,120]
[398436688,1765654343720,-2104.16,0.00042465,120]
[398436689,1765654343758,-199.0,0.00042465,42]
[398436690,1765654343795,-1537.83,0.00042465,120]
[398436691,1765654343830,-531.0,0.00042466,120]
[398436692,1765654343867,-154.79,0.00042508,120]
[398436693,1765654343902,-500.0,0.00042533,30]
[398436694,1765654343937,-531.0,0.00042603,120]
[398436695,1765654343975,-154.79,0.00042608,120]
[398436696,1765654344009,-1298.0,0.00042701,30]
[398436697,1765654344046,-154.79,0.00042708,120]
[398436698,1765654344080,-2104.16,0.00042739,120]
[398436699,1765654344116,-1537.83,0.00042739,120]
[398436700,1765654344153,-4112.48,0.00042739,120]
[398436701,1765654344190,-531.0,0.0004274,120]
[398436702,1765654344234,-5795.23427659,0.000428,90]
[398436703,1765654344276,-549.34,0.00042807,30]
[398436704,1765654344315,-154.79,0.00042808,120]
[398436705,1765654344352,-531.0,0.00042877,120]
[398436706,1765654344390,-154.79,0.00042908,120]
[398436707,1765654344430,-215.0,0.0004295,30]
[398436708,1765654344467,-250.41104453,0.00043,120]
[398436709,1765654344503,-729.51,0.00043,30]
[398436710,1765654344539,-150.0,0.00043,120]
[398436711,1765654344574,-305.05615837,0.00043,120]
[398436712,1765654344612,-1574.0,0.00043,120]
[398436713,1765654344649,-500.0,0.00043,63]
[398436714,1765654344685,-3245.0,0.00043,120]
[398436715,1765654344720,-150.0,0.00043,60]
[398436716,1765654344755,-152.0,0.00043,90]
[398436717,1765654344798,-154.79,0.00043008,120]
[398436718,1765654344833,-2104.16,0.00043013,120]
[398436719,1765654344868,-1537.83,0.00043013,120]
[398436720,1765654344903,-204.28,0.00043014,120]
[398436721,1765654344938,-531.0,0.00043014,120]
[398436722,1765654344974,-154.79,0.00043108,120]
[398436723,1765654345011,-1298.0,0.00043119,30]
[398436724,1765654345545,-199.0,0.0004315,43]
[398436725,1765654345623,-531.0,0.00043151,120]
[398436726,1765654345661,-154.79,0.00043208,120]
[398436727,1765654345696,-209.403,0.0004322,30]
[398436728,1765654345730,-2104.16,0.00043287,120]
[398436729,1765654345764,-1537.83,0.00043287,120]
[398436730,1765654345798,-531.0,0.00043288,120]
[398436731,1765654345832,-215.39289731,0.00043299,120]
[398436732,1765654345867,-154.79,0.00043308,120]
[398436733,1765654345901,-152.0,0.00043324,90]
[398436734,1765654345938,-200.0,0.0004337,120]
[398436735,1765654345974,-154.79,0.00043408,120]
[398436736,1765654346010,-531.0,0.00043425,120]
[398436737,1765654346045,-154.79,0.00043508,120]
[398436738,1765654346082,-2104.16,0.00043561,120]
[398436739,1765654346129,-1537.83,0.00043561,120]
[398436740,1765654346169,-531.0,0.00043562,120]
[398436741,1765654346209,-150.0,0.00043573,120]
[398436742,1765654346249,-154.79,0.00043608,120]
[398436743,1765654346285,-531.0,0.00043699,120]
[398436744,1765654346323,-154.79,0.00043708,120]
[398436745,1765654346359,-500.65472695,0.000438,30]
[398436746,1765654346396,-237.81,0.000438,120]
[398436747,1765654346433,-154.79,0.00043808,120]
[398436748,1765654346468,-2104.16,0.00043835,120]
[398436749,1765654346503,-199.0,0.00043835,44]
[398436750,1765654346540,-1537.83,0.00043835,120]
[398436751,1765654346578,-4112.48,0.00043835,120]
[398436752,1765654346618,-500.0,0.00043835,90]
[398436753,1765654346659,-500.0,0.00043835,90]
[398436754,1765654346699,-500.0,0.00043835,90]
[398436755,1765654346739,-500.0,0.00043835,90]
[398436756,1765654346779,-500.0,0.00043835,90]
[398436757,1765654346818,-500.0,0.00043835,90]
[398436758,1765654346859,-500.0,0.00043835,90]
[398436759,1765654346897,-500.0,0.00043835,90]
[398436760,1765654346933,-500.0,0.00043835,90]
[398436761,1765654346968,-500.0,0.00043835,90]
[398436762,1765654347002,-500.0,0.00043835,90]
[398436763,1765654347035,-500.0,0.00043835,90]
[398436764,1765654347069,-500.0,0.00043835,90]
[398436765,1765654347104,-500.0,0.00043835,90]
[398436766,1765654347140,-500.0,0.00043835,90]
[398436767,1765654347177,-500.0,0.00043835,90]
[398436768,1765654347214,-500.0,0.00043835,90]
[398436769,1765654347250,-500.0,0.00043835,90]
[398436770,1765654347285,-510.48801993,0.00043835,90]
[398436771,1765654347320,-531.0,0.00043836,120]
[398436772,1765654347363,-484.0,0.00043882,90]
[398436773,1765654347404,-154.79,0.00043908,120]
[398436774,1765654347446,-531.0,0.00043973,120]
[398436775,1765654347486,-782.52,0.00043997,120]
[398436776,1765654347524,-191.0,0.00044,120]
[398436777,1765654347564,-161.0,0.00044,120]
[398436778,1765654347604,-512.26799849,0.00044,120]
[398436779,1765654347647,-398.7991957,0.00044,120]
[398436780,1765654347686,-150.0,0.00044,120]
[398436781,1765654347724,-151.26932352,0.00044,120]
[398436782,1765654347762,-300.0,0.00044,120]
[398436783,1765654347798,-500.0,0.00044,64]
[398436784,1765654347833,-1075.11167369,0.00044,120]
[398436785,1765654347868,-551.554519,0.00044,57]
[398436786,1765654347902,-150.0,0.00044,60]
[398436787,1765654347939,-154.79,0.00044008,120]
[398436788,1765654347976,-154.79,0.00044108,120]
[398436789,1765654348012,-2104.16,0.00044109,120]
[398436790,1765654348049,-1537.83,0.00044109,120]
[398436791,1765654348086,-531.0,0.0004411,120]
[398436792,1765654348124,-154.79,0.00044208,120]
[398436793,1765654348160,-551.02269973,0.00044247,120]
[398436794,1765654348198,-158.7095026,0.0004425,120]
[398436795,1765654348237,-154.79,0.00044308,120]
[398436796,1765654348276,-200.0,0.00044319,120]
[398436797,1765654348313,-2104.16,0.00044383,120]
[398436798,1765654348353,-1537.86976845,0.00044383,120]
[398436799,1765654348390,-150.0,0.00044384,120]
[398436800,1765654348426,-215.39289731,0.00044395,120]
[398436801,1765654348465,-154.79,0.00044408,120]
[398436802,1765654348502,-191.0,0.000445,120]
[398436803,1765654348539,-161.0,0.000445,120]
[398436804,1765654348578,-154.79,0.00044508,120]
[398436805,1765654348613,-199.0,0.0004452,45]
[398436806,1765654348650,-1098.0,0.00044525,30]
[398436807,1765654348686,-1098.0,0.00044525,30]
[398436808,1765654348724,-1502.86241258,0.00044535,30]
[398436809,1765654348760,-154.79,0.00044608,120]
[398436810,1765654348798,-2104.32,0.00044657,120]
[398436811,1765654348834,-154.79,0.00044708,120]
[398436812,1765654348872,-154.79,0.00044808,120]
[398436813,1765654348907,-154.79,0.00044908,120]
[398436814,1765654348942,-4112.48,0.00044931,120]
[398436815,1765654348976,-215.0,0.0004496,30]
[398436816,1765654349010,-150.0,0.00044965,120]
[398436817,1765654349045,-1000.0,0.00044999,120]
[398436818,1765654349082,-50000.0,0.00045,45]
[398436819,1765654349357,-1000.0,0.00045,120]
[398436820,1765654349396,-500.0,0.00045,60]
[398436821,1765654349434,-500.0,0.00045,120]
[398436822,1765654349471,-1599.0,0.00045,120]
[398436823,1765654349508,-150.0,0.00045,90]
[398436824,1765654349544,-191.0,0.00045,120]
[398436825,1765654349579,-161.0,0.00045,120]
[398436826,1765654349613,-547.76551821,0.00045,120]
[398436827,1765654349647,-192.17289861,0.00045,30]
[398436828,1765654349681,-403.51319434,0.00045,120]
[398436829,1765654349716,-150.0,0.00045,120]
[398436830,1765654349755,-158.1,0.00045,85]
[398436831,1765654349792,-1844.04855719,0.00045,90]
[398436832,1765654349835,-1574.0,0.00045,120]
[398436833,1765654349873,-300.0,0.00045,60]
[398436834,1765654349911,-269297.46260683,0.00045,90]
[398436835,1765654349946,-683.1518765,0.00045,120]
[398436836,1765654349978,-2423.9,0.00045,120]
[398436837,1765654350011,-150.0,0.00045,120]
[398436838,1765654350044,-223.0,0.00045,120]
[398436839,1765654350078,-829.47,0.00045,120]
[398436840,1765654350114,-41000.0,0.00045,30]
[398436841,1765654350149,-150.0,0.00045,60]
[398436842,1765654350187,-154.79,0.00045008,120]
[398436843,1765654350228,-154.79,0.00045108,120]
[398436844,1765654350267,-152.0,0.00045203,90]
[398436845,1765654350304,-249.29902937,0.00045205,46]
[398436846,1765654350342,-154.79,0.00045208,120]
[398436847,1765654350380,-200.0,0.00045267,120]
[398436848,1765654350419,-154.79,0.00045308,120]
[398436849,1765654350457,-154.79,0.00045408,120]
[398436850,1765654350492,-215.39289731,0.00045491,120]
[398436851,1765654350531,-191.0,0.000455,120]
[398436852,1765654350567,-161.0,0.000455,120]
[398436853,1765654350603,-253.8,0.000455,120]
[398436854,1765654350641,-154.79,0.00045508,120]
[398436855,1765654350679,-150.0,0.00045543,120]
[398436856,1765654350714,-154.79,0.00045608,120]
[398436857,1765654350751,-154.79,0.00045708,120]
[398436858,1765654350786,-150.0,0.00045738,120]
[398436859,1765654350820,-155.18677666,0.00045808,120]
[398436860,1765654350854,-150.0,0.00045871,120]
[398436861,1765654350888,-215.50500835,0.0004589,120]
[398436862,1765654350922,-5659.58,0.00046,30]
[398436863,1765654350958,-191.0,0.00046,120]
[398436864,1765654350994,-161.0,0.00046,120]
[398436865,1765654351028,-345.79937162,0.00046,120]
[398436866,1765654351063,-204.65714777,0.00046,30]
[398436867,1765654351098,-461.83115055,0.00046,120]
[398436868,1765654351134,-150.0,0.00046,120]
[398436869,1765654351169,-300.0,0.00046,120]
[398436870,1765654351204,-1585.96320325,0.00046,120]
[398436871,1765654351238,-150.0,0.00046,60]
[398436872,1765654351275,-4112.48,0.00046027,120]
[398436873,1765654351307,-200.0,0.00046216,120]
[398436874,1765654351344,-150.0,0.00046432,120]
[398436875,1765654351378,-191.0,0.000465,120]
[398436876,1765654351412,-161.0,0.000465,120]
[398436877,1765654351446,-150.0,0.00046502,120]
[398436878,1765654351482,-215.39289731,0.00046587,120]
[398436879,1765654351516,-483.0,0.00046808,90]
[398436880,1765654351552,-1000.0,0.000469,120]
[398436881,1765654351588,-215.0,0.0004698,30]
[398436882,1765654351625,-191.0,0.00047,120]
[398436883,1765654351659,-161.0,0.00047,120]
[398436884,1765654351694,-500.0,0.00047,120]
[398436885,1765654351727,-209.12481853,0.00047,120]
[398436886,1765654351760,-150.0,0.00047,120]
[398436887,1765654351792,-164.23160341,0.00047,30]
[398436888,1765654351826,-1574.0,0.00047,120]
[398436889,1765654351859,-2000.0,0.00047,120]
[398436890,1765654351892,-150.0,0.00047,60]
[398436891,1765654351927,-4112.48,0.00047123,120]
[398436892,1765654351961,-200.0,0.00047165,120]
[398436893,1765654351996,-160.0,0.0004726,120]
[398436894,1765654352031,-150.0,0.00047374,120]
[398436895,1765654352066,-191.0,0.000474,120]
[398436896,1765654352100,-161.0,0.000474,120]
[398436897,1765654352133,-660.35018063,0.000474,120]
[398436898,1765654352168,-234.0,0.000474,46]
[398436899,1765654352205,-1346.6,0.00047419,120]
[398436900,1765654352241,-150.0,0.00047446,120]
[398436901,1765654352277,-152.0,0.00047463,90]
[398436902,1765654352319,-215.39289731,0.00047682,120]
[398436903,1765654352356,-3089.129999,0.00047777,50]
[398436904,1765654352398,-1827.20253,0.00047808,30]
[398436905,1765654352434,-191.0,0.000479,120]
[398436906,1765654352471,-161.0,0.000479,120]
[398436907,1765654352509,-1000.0,0.00047999,120]
[398436908,1765654352546,-2000.0,0.00048,120]
[398436909,1765654352584,-512.21060053,0.00048,120]
[398436910,1765654352622,-233.66384781,0.00048,120]
[398436911,1765654352660,-547.7198797,0.00048,120]
[398436912,1765654352697,-150.0,0.00048,120]
[398436913,1765654353003,-3512.0,0.00048,120]
[398436914,1765654353044,-300.0,0.00048,120]
[398436915,1765654353081,-345.621,0.00048,120]
[398436916,1765654353117,-2088.6004,0.00048,120]
[398436917,1765654353156,-5099.71871215,0.00048,120]
[398436918,1765654353197,-2002.12826053,0.00048,60]
[398436919,1765654353238,-1585.96320325,0.00048,120]
[398436920,1765654353276,-289.2973332,0.00048,30]
[398436921,1765654353316,-150.0,0.00048,60]
[398436922,1765654353354,-150.0,0.00048,120]
[398436923,1765654353391,-700.0,0.00048,120]
[398436924,1765654353430,-500.0,0.00048,120]
[398436925,1765654353469,-150.0,0.00048,120]
[398436926,1765654353510,-150.0,0.00048048,120]
[398436927,1765654353549,-150.0,0.00048085,120]